lending/lending_fUSD_20240111
["ID","MTS","AMOUNT","RATE_DAILY","PERIOD"]
[311175566,1704967843656,-500.0,0.00036712,4]
[311175567,1704967843666,-518.84583736,0.00036712,4]
[311175568,1704967843676,-505.36776958,0.00036712,4]
[311175569,1704967843685,-500.0,0.00036712,4]
[311175570,1704967843695,-500.0,0.00036712,4]
[311175571,1704967843705,-505.2983761,0.00036712,4]
[311175572,1704967843714,-500.0,0.00036712,4]
[311175573,1704967843725,-500.0,0.00036712,4]
[311175574,1704967843734,-500.0,0.00036712,4]
[311175575,1704967843744,-510.21278345,0.00036712,4]
[311175576,1704967843753,-514.99405523,0.00036712,4]
[311175577,1704967843763,-506.16285402,0.00036712,4]
[311175578,1704967843776,-500.0,0.00036712,4]
[311175579,1704967843786,-500.0,0.00036712,4]
[311175580,1704967843796,-508.33601025,0.00036712,4]
[311175581,1704967843806,-500.0,0.00036712,2]
[311175582,1704967843816,-518.54278597,0.00036712,4]
[311175583,1704967843826,-500.0,0.00036712,4]
[311175584,1704967843835,-500.0,0.00036712,4]
[311175585,1704967843845,-500.0,0.00036712,4]
[311175586,1704967843856,-500.0,0.00036712,4]
[311175587,1704967843867,-506.63106704,0.00036712,4]
[311175588,1704967843877,-500.0,0.00036712,4]
[311175589,1704967843886,-500.0,0.00036712,4]
[311175590,1704967843895,-500.0,0.00036712,4]
[311175591,1704967843904,-500.0,0.00036712,4]
[311175592,1704967843915,-500.0,0.00036712,4]
[311175593,1704967843925,-500.0,0.00036712,4]
[311175594,1704967843935,-500.0,0.00036712,4]
[311175595,1704967843945,-500.0,0.00036712,4]
[311175596,1704967843954,-500.0,0.00036712,4]
[311175597,1704967843963,-503.73956341,0.00036712,4]
[311175598,1704967843972,-500.0,0.00036712,4]
[311175599,1704967843981,-500.0,0.00036712,4]
[311175600,1704967843991,-500.0,0.00036712,4]
[311175601,1704967844001,-500.0,0.00036712,4]
[311175602,1704967844010,-511.70527507,0.00036712,4]
[311175603,1704967844019,-500.0,0.00036712,4]
[311175604,1704967844029,-500.0,0.00036712,4]
[311175605,1704967844038,-500.0,0.00036712,4]
[311175606,1704967844047,-500.0,0.00036712,4]
[311175607,1704967844056,-500.0,0.00036712,4]
[311175608,1704967844066,-500.0,0.00036712,4]
[311175609,1704967844075,-500.0,0.00036712,4]
[311175610,1704967844084,-500.0,0.00036712,4]
[311175611,1704967844094,-751.62,0.00036712,4]
[311175612,1704967844104,-541.25315078,0.00036712,4]
[311175613,1704967844114,-508.21570886,0.00036712,4]
[311175614,1704967844124,-268.90635126,0.00036712,4]
[311175615,1704967844134,-500.0,0.00036712,4]
[311175616,1704967844145,-500.0,0.00036712,4]
[311175617,1704967844155,-520.38458156,0.00036712,4]
[311175618,1704967844165,-513.68121161,0.00036712,4]
[311175619,1704967844175,-500.0,0.00036712,4]
[311175620,1704967844185,-522.55645851,0.00036712,4]
[311175621,1704967844195,-526.04,0.00036712,4]
[311175622,1704967844204,-500.0,0.00036712,4]
[311175623,1704967844213,-520.87976103,0.00036712,4]
[311175624,1704967844222,-504.51726615,0.00036712,4]
[311175625,1704967844231,-500.0,0.00036712,4]
[311175626,1704967844241,-500.0,0.00036712,4]
[311175627,1704967844250,-505.65865905,0.00036712,4]
[311175628,1704967844261,-500.0,0.00036712,4]
[311175629,1704967844270,-500.0,0.00036712,4]
[311175630,1704967844279,-500.0,0.00036712,4]
[311175631,1704967844290,-500.0,0.00036712,4]
[311175632,1704967844300,-500.0,0.00036712,4]
[311175633,1704967844311,-500.0,0.00036712,4]
[311175634,1704967844322,-500.0,0.00036712,4]
[311175635,1704967844332,-500.0,0.00036712,4]
[311175636,1704967844341,-500.0,0.00036712,4]
[311175637,1704967844351,-506.31443623,0.00036712,4]
[311175638,1704967844361,-500.0,0.00036712,4]
[311175639,1704967844372,-500.0,0.00036712,4]
[311175640,1704967844386,-517.85828821,0.00036712,4]
[311175641,1704967844394,-621.38,0.00036712,4]
[311175642,1704967844403,-500.0,0.00036712,4]
[311175643,1704967844412,-500.0,0.00036712,4]
[311175644,1704967844422,-222.7227005,0.00036712,4]
[311175645,1704967844431,-512.71170766,0.00036712,4]
[311175646,1704967844440,-500.0,0.00036712,4]
[311175647,1704967844449,-500.0,0.00036712,4]
[311175648,1704967844458,-500.0,0.00036712,4]
[311175649,1704967844468,-500.0,0.00036712,4]
[311175650,1704967844477,-505.79523596,0.00036712,4]
[311175651,1704967844486,-500.0,0.00036712,4]
[311175652,1704967844495,-513.26422764,0.00036712,4]
[311175653,1704967844504,-564.9,0.00036712,4]
[311175654,1704967844513,-278.23022667,0.00036712,4]
[311175655,1704967844522,-500.0,0.00036712,4]
[311175656,1704967844531,-500.0,0.00036712,4]
[311175657,1704967844540,-500.0,0.00036712,4]
[311175658,1704967844550,-500.0,0.00036712,4]
[311175659,1704967844558,-946.97,0.00036712,4]
[311175660,1704967844567,-365.14666583,0.00036712,4]
[311175661,1704967844577,-500.0,0.00036712,4]
[311175662,1704967844586,-500.0,0.00036712,4]
[311175663,1704967844595,-500.0,0.00036712,4]
[311175664,1704967844604,-500.0,0.00036712,4]
[311175665,1704967844614,-507.47208144,0.00036712,4]
[311175666,1704967844623,-509.0516001,0.00036712,4]
[311175667,1704967844633,-500.0,0.00036712,4]
[311175668,1704967844642,-640.9580008,0.00036712,4]
[311175669,1704967844652,-500.0,0.00036712,4]
[311175670,1704967844661,-507.69470056,0.00036712,4]
[311175671,1704967844671,-500.0,0.00036712,4]
[311175672,1704967844680,-500.0,0.00036712,4]
[311175673,1704967844689,-500.0,0.00036712,4]
[311175674,1704967844698,-500.0,0.00036712,4]
[311175675,1704967844707,-856.63,0.00036712,4]
[311175676,1704967844716,-500.0,0.00036712,4]
[311175677,1704967844726,-500.0,0.00036712,4]
[311175678,1704967844735,-507.72869085,0.00036712,4]
[311175679,1704967844744,-387.24914912,0.00036712,4]
[311175680,1704967844756,-500.0,0.00036712,4]
[311175681,1704967844766,-500.0,0.00036712,4]
[311175682,1704967844775,-500.0,0.00036712,4]
[311175683,1704967844785,-500.0,0.00036712,4]
[311175684,1704967844794,-520.32737125,0.00036712,4]
[311175685,1704967844804,-500.0,0.00036712,4]
[311175686,1704967844814,-500.0,0.00036712,4]
[311175687,1704967844825,-500.0,0.00036712,4]
[311175688,1704967844834,-560.79,0.00036712,4]
[311175689,1704967844843,-500.0,0.00036712,4]
[311175690,1704967844852,-500.0,0.00036712,4]
[311175691,1704967844862,-500.0,0.00036712,4]
[311175692,1704967844871,-500.0,0.00036712,4]
[311175693,1704967844880,-318.95953749,0.00036712,4]
[311175694,1704967844889,-500.0,0.00036712,4]
[311175695,1704967844898,-500.0,0.00036712,4]
[311175696,1704967844907,-514.65249998,0.00036712,4]
[311175697,1704967844916,-510.91205275,0.00036712,4]
[311175698,1704967844925,-502.5445852,0.00036712,4]
[311175699,1704967844935,-500.0,0.00036712,4]
[311175700,1704967844944,-500.0,0.00036712,4]
[311175701,1704967844955,-500.0,0.00036712,4]
[311175702,1704967844964,-509.28113203,0.00036712,4]
[311175703,1704967844974,-500.0,0.00036712,4]
[311175704,1704967844984,-507.7451186,0.00036712,4]
[311175705,1704967844994,-304.18140064,0.00036712,4]
[311175706,1704967845004,-500.0,0.00036712,4]
[311175707,1704967845013,-500.0,0.00036712,4]
[311175708,1704967845023,-500.0,0.00036712,4]
[311175709,1704967845032,-500.0,0.00036712,4]
[311175710,1704967845041,-500.0,0.00036712,4]
[311175711,1704967845050,-500.0,0.00036712,4]
[311175712,1704967845059,-500.0,0.00036712,4]
[311175713,1704967845068,-500.0,0.00036712,4]
[311175714,1704967845078,-500.0,0.00036712,4]
[311175715,1704967845087,-500.0,0.00036712,4]
[311175716,1704967845099,-500.0,0.00036712,4]
[311175717,1704967845108,-500.0,0.00036712,4]
[311175718,1704967845118,-500.0,0.00036712,4]
[311175719,1704967845128,-500.0,0.00036712,4]
[311175720,1704967845137,-827.77,0.00036712,4]
[311175721,1704967845147,-500.0,0.00036712,4]
[311175722,1704967845156,-1020.1854171,0.00036712,4]
[311175723,1704967845165,-500.0,0.00036712,4]
[311175724,1704967845176,-500.0,0.00036712,4]
[311175725,1704967845186,-500.0,0.00036712,4]
[311175726,1704967845197,-886.39,0.00036712,4]
[311175727,1704967845207,-505.23186901,0.00036712,4]
[311175728,1704967845217,-529.49489793,0.00036712,4]
[311175729,1704967845227,-500.0,0.00036712,4]
[311175730,1704967845237,-659.88,0.00036712,5]
[311175731,1704967845246,-500.0,0.00036712,4]
[311175732,1704967845255,-519.83287675,0.00036712,4]
[311175733,1704967845265,-500.0,0.00036712,4]
[311175734,1704967845274,-500.0,0.00036712,4]
[311175735,1704967845284,-500.0,0.00036712,4]
[311175736,1704967845295,-500.0,0.00036712,4]
[311175737,1704967845330,-500.0,0.00036712,4]
[311175738,1704967845340,-500.0,0.00036712,4]
[311175739,1704967845481,-500.0,0.00036712,4]
[311175740,1704967845492,-505.10151343,0.00036712,4]
[311175741,1704967845502,-500.0,0.00036712,4]
[311175742,1704967845511,-500.0,0.00036712,4]
[311175743,1704967845522,-552.44140033,0.00036712,4]
[311175744,1704967845532,-537.62,0.00036712,4]
[311175745,1704967845542,-500.0,0.00036712,4]
[311175747,1704967845551,-500.0,0.00036712,4]
[311175748,1704967845560,-500.35954488,0.00036712,4]
[311175749,1704967845569,-543.37507891,0.00036712,4]
[311175750,1704967845578,-515.82201395,0.00036712,4]
[311175751,1704967845587,-500.0,0.00036712,4]
[311175752,1704967845596,-500.0,0.00036712,4]
[311175753,1704967845605,-508.63357172,0.00036712,4]
[311175754,1704967845615,-500.0,0.00036712,4]
[311175755,1704967845625,-500.0,0.00036712,4]
[311175756,1704967845635,-500.0,0.00036712,4]
[311175757,1704967845644,-500.0,0.00036712,4]
[311175758,1704967845655,-229.26022503,0.00036712,4]
[311175759,1704967845664,-500.0,0.00036712,4]
[311175760,1704967845674,-500.0,0.00036712,4]
[311175761,1704967845684,-500.0,0.00036712,4]
[311175762,1704967845694,-500.0,0.00036712,4]
[311175763,1704967845703,-500.0,0.00036712,4]
[311175764,1704967845712,-500.0,0.00036712,4]
[311175765,1704967845721,-500.0,0.00036712,4]
[311175766,1704967845730,-500.0,0.00036712,4]
[311175767,1704967845740,-500.0,0.00036712,4]
[311175768,1704967845749,-598.21618811,0.00036712,4]
[311175769,1704967845758,-505.94319941,0.00036712,4]
[311175770,1704967845767,-500.0,0.00036712,4]
[311175771,1704967845777,-502.85401761,0.00036712,4]
[311175772,1704967845789,-500.0,0.00036712,4]
[311175773,1704967845798,-502.98287112,0.00036712,4]
[311175774,1704967845808,-500.0,0.00036712,4]
[311175775,1704967845817,-588.0,0.00036712,4]
[311175776,1704967845827,-1000.0,0.00036712,2]
[311175777,1704967845836,-518.16550047,0.00036712,4]
[311175778,1704967845846,-855.77,0.00036712,4]
[311175779,1704967845855,-500.0,0.00036712,4]
[311175780,1704967845864,-500.0,0.00036712,4]
[311175781,1704967845873,-508.66706935,0.00036712,4]
[311175782,1704967845883,-500.0,0.00036712,4]
[311175783,1704967845892,-382.8195762,0.00036712,4]
[311175784,1704967845902,-539.65140382,0.00036712,4]
[311175785,1704967845911,-500.0,0.00036712,4]
[311175786,1704967845921,-500.0,0.00036712,4]
[311175787,1704967845930,-500.0,0.00036712,4]
[311175788,1704967845939,-614.17,0.00036712,4]
[311175789,1704967845950,-500.0,0.00036712,4]
[311175790,1704967845959,-1432.2,0.00036712,4]
[311175791,1704967845970,-500.0,0.00036712,4]
[311175792,1704967845980,-504.03294526,0.00036712,4]
[311175793,1704967845990,-500.0,0.00036712,4]
[311175794,1704967846000,-500.0,0.00036712,4]
[311175795,1704967846010,-500.0,0.00036712,30]
[311175796,1704967846021,-551.12400403,0.00036712,4]
[311175797,1704967846030,-500.0,0.00036712,4]
[311175798,1704967846038,-511.56979424,0.00036712,4]
[311175799,1704967846047,-500.0,0.00036712,4]
[311175800,1704967846056,-500.0,0.00036712,4]
[311175801,1704967846065,-500.0,0.00036712,4]
[311175802,1704967846074,-508.44510712,0.00036712,4]
[311175803,1704967846085,-513.03672455,0.00036712,4]
[311175804,1704967846105,-500.0,0.00036712,4]
[311175805,1704967846117,-500.0,0.00036712,4]
[311175806,1704967846127,-500.0,0.00036712,4]
[311175807,1704967846139,-500.0,0.00036712,4]
[311175808,1704967846150,-500.0,0.00036712,4]
[311175809,1704967846161,-500.0,0.00036712,4]
[311175810,1704967846170,-503.79984841,0.00036712,4]
[311175811,1704967846181,-500.0,0.00036712,4]
[311175812,1704967846194,-500.0,0.00036712,4]
[311175813,1704967846204,-500.0,0.00036712,4]
[311175814,1704967846214,-514.97313408,0.00036712,4]
[311175815,1704967846225,-506.0145031,0.00036712,4]
[311175816,1704967846235,-500.0,0.00036712,4]
[311175817,1704967846247,-500.0,0.00036712,4]
[311175818,1704967846257,-500.0,0.00036712,4]
[311175819,1704967846268,-576.97976331,0.00036712,4]
[311175820,1704967846278,-500.0,0.00036712,4]
[311175821,1704967846289,-740.17,0.00036712,4]
[311175822,1704967846300,-500.0,0.00036712,4]
[311175823,1704967846311,-500.0,0.00036712,4]
[311175824,1704967846322,-500.0,0.00036712,4]
[311175825,1704967846333,-500.0,0.00036712,4]
[311175826,1704967846342,-451.8209268,0.00036712,4]
[311175827,1704967846351,-500.0,0.00036712,4]
[311175828,1704967846361,-500.0,0.00036712,4]
[311175829,1704967846370,-513.08308825,0.00036712,4]
[311175830,1704967846380,-426.69914859,0.00036712,4]
[311175831,1704967846389,-500.0,0.00036712,4]
[311175832,1704967846398,-500.0,0.00036712,4]
[311175833,1704967846408,-500.0,0.00036712,4]
[311175834,1704967846417,-500.0,0.00036712,4]
[311175835,1704967846427,-500.0,0.00036712,4]
[311175836,1704967846436,-500.0,0.00036712,4]
[311175837,1704967846445,-500.0,0.00036712,4]
[311175838,1704967846455,-500.0,0.00036712,4]
[311175839,1704967846464,-500.0,0.00036712,4]
[311175840,1704967846474,-500.0,0.00036712,4]
[311175841,1704967846483,-500.0,0.00036712,4]
[311175842,1704967846493,-500.0,0.00036712,4]
[311175843,1704967846503,-500.0,0.00036712,4]
[311175844,1704967846512,-500.0,0.00036712,4]
[311175845,1704967846522,-500.0,0.00036712,4]
[311175846,1704967846532,-1070.26681804,0.00036712,2]
[311175847,1704967846542,-500.0,0.00036712,4]
[311175848,1704967846551,-500.0,0.00036712,4]
[311175849,1704967846562,-500.0,0.00036712,4]
[311175850,1704967846571,-500.0,0.00036712,4]
[311175851,1704967846581,-505.42329633,0.00036712,4]
[311175852,1704967846590,-1058.63,0.00036712,5]
[311175853,1704967846599,-500.0,0.00036712,4]
[311175854,1704967846610,-500.0,0.00036712,4]
[311175856,1704967846620,-6150.59,0.00036712,4]
[311175859,1704967846630,-500.0,0.00036712,4]
[311175861,1704967846640,-539.06,0.00036712,4]
[311175863,1704967846650,-500.0,0.00036712,4]
[311175864,1704967846660,-500.0,0.00036712,4]
[311175866,1704967846670,-500.0,0.00036712,4]
[311175868,1704967846680,-500.0,0.00036712,4]
[311175870,1704967846690,-500.0,0.00036712,4]
[311175872,1704967846700,-500.0,0.00036712,4]
[311175874,1704967846710,-500.0,0.00036712,4]
[311175877,1704967846720,-603.69,0.00036712,4]
[311175879,1704967846730,-258.56316978,0.00036712,3]
[311175880,1704967846739,-500.0,0.00036712,4]
[311175882,1704967846749,-500.0,0.00036712,4]
[311175884,1704967846759,-514.62843995,0.00036712,4]
[311175887,1704967846770,-500.0,0.00036712,4]
[311175888,1704967846779,-500.0,0.00036712,4]
[311175889,1704967846789,-500.0,0.00036712,4]
[311175890,1704967846798,-500.0,0.00036712,4]
[311175891,1704967846808,-500.0,0.00036712,4]
[311175892,1704967846818,-500.0,0.00036712,4]
[311175893,1704967846828,-554.23,0.00036712,4]
[311175894,1704967846854,-500.0,0.00036712,2]
[311175895,1704967846864,-500.0,0.00036712,4]
[311175896,1704967846876,-500.0,0.00036712,4]
[311175897,1704967846887,-500.0,0.00036712,4]
[311175898,1704967846898,-500.0,0.00036712,4]
[311175899,1704967846908,-500.0,0.00036712,4]
[311175900,1704967846919,-500.0,0.00036712,4]
[311175901,1704967846929,-500.0,0.00036712,4]
[311175902,1704967846940,-312.58081713,0.00036712,4]
[311175903,1704967847206,-263.84005472,0.00036712,4]
[311175904,1704967847227,-53.32912815,0.00036712,4]
[311175905,1704967847237,-537.10997893,0.00036712,4]
[311175906,1704967847246,-500.0,0.00036712,4]
[311175907,1704967847256,-500.0,0.00036712,4]
[311175908,1704967847266,-500.0,0.00036712,4]
[311175909,1704967847277,-500.0,0.00036712,4]
[311175910,1704967847288,-270.76,0.00036713,10]
[311175911,1704967847299,-236.24,0.00036723,2]
[311175912,1704967847310,-234.40111,0.00036748,6]
[311175913,1704967847320,-150.0,0.00036757,2]
[311175914,1704967847330,-151.40111,0.00036798,4]
[311175915,1704967847340,-996.3147684,0.00036799,2]
[311175916,1704967847354,-6503.6852316,0.00036799,2]
[311175917,1704967847364,-234.40111,0.00036848,6]
[311175918,1704967847374,-150.0,0.00036877,2]
[311175919,1704967847383,-747.63,0.00036882,15]
[311175920,1704967847392,-467.88,0.00036887,10]
[311175921,1704967847402,-389.9,0.00036887,10]
[311175922,1704967847411,-324.92,0.00036887,10]
[311175923,1704967847420,-151.69,0.00036888,2]
[311175924,1704967847430,-200.0,0.00036897,4]
[311175925,1704967847439,-371.67576048,0.00036897,4]
[311175926,1704967847448,-502.78933197,0.00036897,4]
[311175927,1704967847457,-598.22080043,0.00036897,4]
[311175928,1704967847466,-483.54808874,0.00036897,4]
[311175929,1704967847477,-500.0,0.00036897,4]
[311175930,1704967847629,-313.4938117,0.00036897,4]
[311175931,1704967847639,-553.95,0.00036897,4]
[311175932,1704967847649,-461.99421933,0.00036897,4]
[311175933,1704967847658,-525.35111877,0.00036897,4]
[311175934,1704967847667,-500.0,0.00036897,4]
[311175935,1704967847676,-500.0,0.00036897,2]
[311175936,1704967847685,-499.2752256,0.00036897,4]
[311175937,1704967847694,-199.94711252,0.00036897,4]
[311175938,1704967847703,-500.0,0.00036897,4]
[311175939,1704967847713,-500.0,0.00036897,4]
[311175940,1704967847722,-500.0,0.00036897,4]
[311175941,1704967847731,-500.0,0.00036897,4]
[311175942,1704967847741,-500.0,0.00036897,4]
[311175943,1704967847751,-154.40371092,0.00036897,4]
[311175944,1704967847760,-151.40111,0.00036898,4]
[311175945,1704967847769,-6165.8921,0.00036898,2]
[311175946,1704967847782,-52822.4052,0.00036899,2]
[311175947,1704967847792,-2000.0,0.00036899,4]
[311175948,1704967847801,-151.13533026,0.000369,2]
[311175949,1704967847810,-357.874054,0.000369,2]
[311175950,1704967847819,-191.96207289,0.000369,2]
[311175951,1704967847828,-274.18470334,0.000369,2]
[311175952,1704967847840,-4498.43467558,0.000369,2]
[311175953,1704967847851,-177.89012804,0.000369,27]
[311175954,1704967847861,-3398.32803068,0.000369,2]
[311175955,1704967847871,-234.40111,0.00036948,6]
[311175956,1704967847885,-500.0,0.00036986,4]
[311175957,1704967847895,-500.0,0.00036986,4]
[311175958,1704967847905,-500.0,0.00036986,4]
[311175959,1704967847915,-500.0,0.00036986,4]
[311175960,1704967847925,-500.0,0.00036986,4]
[311175961,1704967847935,-500.0,0.00036986,4]
[311175962,1704967847944,-500.0,0.00036986,4]
[311175963,1704967847953,-500.0,0.00036986,4]
[311175964,1704967847962,-387.05063179,0.00036986,4]
[311175965,1704967847971,-500.0,0.00036986,4]
[311175966,1704967847983,-686.02,0.00036986,4]
[311175967,1704967847995,-500.0,0.00036986,2]
[311175968,1704967848004,-642.2536063,0.00036986,4]
[311175969,1704967848016,-500.0,0.00036986,4]
[311175970,1704967848027,-220.18246458,0.00036986,4]
[311175971,1704967848038,-173.44,0.00036986,4]
[311175972,1704967848050,-500.0,0.00036986,4]
[311175973,1704967848060,-549.66541701,0.00036986,4]
[311175974,1704967848069,-474.12926794,0.00036986,4]
[311175975,1704967848080,-197.69615329,0.00036986,4]
[311175976,1704967848090,-500.0,0.00036986,4]
[311175977,1704967848100,-181.78611812,0.00036986,4]
[311175978,1704967848111,-500.0,0.00036986,4]
[311175979,1704967848121,-10.69549851,0.00036986,4]
[311175980,1704967848162,-489.30450149,0.00036986,4]
[311175981,1704967848174,-500.0,0.00036986,4]
[311175982,1704967848186,-500.0,0.00036986,4]
[311175983,1704967848197,-500.0,0.00036986,4]
[311175984,1704967848211,-500.0,0.00036986,4]
[311175985,1704967848224,-500.0,0.00036986,4]
[311175986,1704967848234,-406.95,0.00036986,4]
[311175987,1704967848245,-271.7474331,0.00036986,4]
[311175988,1704967848257,-500.0,0.00036986,4]
[311175989,1704967848271,-535.55195545,0.00036986,4]
[311175990,1704967848283,-500.0,0.00036986,4]
[311175991,1704967848294,-500.0,0.00036986,4]
[311175992,1704967848303,-222.58894103,0.00036986,4]
[311175993,1704967848314,-500.0,0.00036986,4]
[311175994,1704967848325,-500.0,0.00036986,4]
[311175995,1704967848336,-500.0,0.00036986,4]
[311175996,1704967848347,-500.0,0.00036986,7]
[311175997,1704967848357,-500.0,0.00036986,4]
[311175998,1704967848367,-500.0,0.00036986,4]
[311175999,1704967848377,-500.0,0.00036986,4]
[311176000,1704967848387,-500.0,0.00036986,4]
[311176001,1704967848397,-500.0,0.00036986,4]
[311176002,1704967848406,-500.0,0.00036986,4]
[311176003,1704967848415,-500.0,0.00036986,4]
[311176004,1704967848426,-500.0,0.00036986,4]
[311176005,1704967848435,-500.0,0.00036986,4]
[311176006,1704967848444,-381.77,0.00036986,4]
[311176007,1704967848453,-500.0,0.00036986,4]
[311176008,1704967848464,-524.9,0.00036986,4]
[311176009,1704967848475,-500.0,0.00036986,4]
[311176010,1704967848484,-150.10559066,0.00036986,4]
[311176011,1704967848493,-500.0,0.00036986,4]
[311176012,1704967848503,-500.0,0.00036986,4]
[311176013,1704967848513,-229.48593158,0.00036986,4]
[311176014,1704967848522,-500.0,0.00036986,4]
[311176015,1704967848531,-500.0,0.00036986,4]
[311176016,1704967848540,-500.0,0.00036986,4]
[311176017,1704967848550,-500.0,0.00036986,4]
[311176018,1704967848560,-586.56,0.00036986,4]
[311176019,1704967848571,-500.0,0.00036986,4]
[311176020,1704967848580,-500.0,0.00036986,4]
[311176021,1704967848590,-500.0,0.00036986,4]
[311176022,1704967848599,-500.0,0.00036986,4]
[311176023,1704967848609,-500.0,0.00036986,4]
[311176024,1704967848619,-500.0,0.00036986,4]
[311176025,1704967848630,-271.86,0.00036986,4]
[311176026,1704967848640,-508.97631425,0.00036986,2]
[311176027,1704967848650,-500.0,0.00036986,4]
[311176028,1704967848659,-500.0,0.00036986,4]
[311176029,1704967848668,-292.07334876,0.00036986,4]
[311176030,1704967848678,-553.78033267,0.00036986,4]
[311176031,1704967848690,-500.0,0.00036986,4]
[311176032,1704967848699,-535.74775366,0.00036986,4]
[311176033,1704967848708,-555.20935847,0.00036986,4]
[311176034,1704967848717,-500.0,0.00036986,4]
[311176035,1704967848726,-500.0,0.00036986,4]
[311176036,1704967848736,-343.98205322,0.00036986,4]
[311176037,1704967848745,-500.0,0.00036986,4]
[311176038,1704967848755,-1011.77,0.00036986,4]
[311176039,1704967848764,-500.0,0.00036986,4]
[311176040,1704967848774,-462.43424498,0.00036986,4]
[311176041,1704967848784,-523.03420847,0.00036986,4]
[311176042,1704967848793,-513.9495582,0.00036986,4]
[311176043,1704967848802,-500.0,0.00036986,4]
[311176044,1704967848812,-500.0,0.00036986,4]
[311176045,1704967848821,-773.49,0.00036986,4]
[311176046,1704967848830,-523.70408669,0.00036986,4]
[311176047,1704967848839,-529.97733972,0.00036986,4]
[311176048,1704967848849,-225.98890183,0.00036986,4]
[311176049,1704967848858,-521.17192559,0.00036986,4]
[311176050,1704967848868,-572.78101656,0.00036986,4]
[311176051,1704967848877,-36.18939567,0.00036986,4]
[311176052,1704967848928,-521.01439098,0.00036986,4]
[311176053,1704967848938,-538.54848261,0.00036986,4]
[311176054,1704967848948,-135.43705641,0.00036986,4]
[311176055,1704967848961,-364.56294359,0.00036986,4]
[311176056,1704967848970,-500.0,0.00036986,4]
[311176057,1704967848979,-551.52838591,0.00036986,4]
[311176058,1704967848988,-500.0,0.00036986,4]
[311176059,1704967848997,-215.93103877,0.00036986,4]
[311176060,1704967849007,-534.80996735,0.00036986,4]
[311176061,1704967849016,-511.54824093,0.00036986,4]
[311176062,1704967849025,-559.33988213,0.00036986,4]
[311176063,1704967849034,-277.98091332,0.00036986,4]
[311176064,1704967849209,-2549.98938686,0.0003,4]
[311176065,1704967849226,-1120.4,0.0003,4]
[311176066,1704967849266,-2950.34810117,0.0003,4]
[311176067,1704967849276,-222.01908668,0.00036986,4]
[311176068,1704967849285,-459.97121332,0.00036986,4]
[311176069,1704967849295,-500.0,0.00036986,4]
[311176070,1704967849304,-500.0,0.00036986,4]
[311176071,1704967849314,-500.0,0.00036986,4]
[311176072,1704967849326,-500.0,0.00036986,4]
[311176073,1704967849336,-500.0,0.00036986,4]
[311176074,1704967849345,-500.0,0.00036986,4]
[311176075,1704967849355,-1000.0,0.00036986,2]
[311176076,1704967849365,-500.0,0.00036986,4]
[311176077,1704967849373,-500.0,0.00036986,4]
[311176078,1704967849384,-1042.51,0.00036986,2]
[311176079,1704967849393,-500.0,0.00036986,4]
[311176080,1704967849404,-385.09094484,0.00036986,4]
[311176081,1704967849415,-500.0,0.00036986,4]
[311176082,1704967849425,-518.65041281,0.00036986,4]
[311176083,1704967849434,-500.0,0.00036986,4]